[Event "Titled Tuesday Blitz June 28 Early 2022"]
[White "Bintang, Rasyid A. Hidayat"]
[Black "Delorme, Alban"]
[WhiteFideId "7105355"]
[BlackFideId "623636"]
[WhiteElo "2372"]
[BlackElo "2197"]
[Result "1-0"]
[Round "05"]
[TimeControl "180+1"]
[Date "2022.06.28"]
[WhiteClock "0:00:14"]
[BlackClock "0:00:29"]

1. e4 {[%clk 0:03:00]}  c5 {[%clk 0:02:53]} 2. Nc3 {[%clk 0:02:59]}  Nc6 {[%clk 0:02:53]} 3. f4 {[%clk 0:02:58]}  g6 {[%clk 0:02:50]} 4. Nf3 {[%clk 0:02:57]}  Bg7 {[%clk 0:02:49]} 5. Bb5 {[%clk 0:02:57]}  Nd4 {[%clk 0:02:47]} 6. O-O {[%clk 0:02:56]}  a6 {[%clk 0:02:45]} 7. Bd3 {[%clk 0:02:48]}  d6 {[%clk 0:02:45]} 8. Ne2 {[%clk 0:02:43]}  Nxf3+ {[%clk 0:02:32]} 9. Rxf3 {[%clk 0:02:42]}  Nf6 {[%clk 0:02:33]} 10. h3 {[%clk 0:02:38]}  O-O {[%clk 0:02:33]} 11. c3 {[%clk 0:02:38]}  c4 {[%clk 0:02:26]} 12. Bc2 {[%clk 0:02:32]}  b5 {[%clk 0:02:26]} 13. d4 {[%clk 0:02:26]}  cxd3 {[%clk 0:02:24]} 14. Bxd3 {[%clk 0:02:22]}  Bb7 {[%clk 0:02:24]} 15. Qc2 {[%clk 0:02:21]}  Rc8 {[%clk 0:02:21]} 16. f5 {[%clk 0:02:19]}  Nd7 {[%clk 0:02:21]} 17. fxg6 {[%clk 0:02:09]}  hxg6 {[%clk 0:02:20]} 18. Bf4 {[%clk 0:02:07]}  Ne5 {[%clk 0:02:19]} 19. Bxe5 {[%clk 0:02:05]}  Bxe5 {[%clk 0:02:20]} 20. Raf1 {[%clk 0:02:03]}  Kg7 {[%clk 0:02:19]} 21. Nf4 {[%clk 0:02:00]}  Bxf4 {[%clk 0:02:00]} 22. Rxf4 {[%clk 0:02:01]}  d5 {[%clk 0:01:57]} 23. e5 {[%clk 0:01:56]}  d4 {[%clk 0:01:42]} 24. Bxg6 {[%clk 0:01:41]}  fxg6 {[%clk 0:01:39]} 25. Rxf8 {[%clk 0:01:37]}  Qxf8 {[%clk 0:01:39]} 26. Rxf8 {[%clk 0:01:37]}  Rxf8 {[%clk 0:01:37]} 27. cxd4 {[%clk 0:01:35]}  Bd5 {[%clk 0:01:20]} 28. Qc5 {[%clk 0:01:32]}  e6 {[%clk 0:01:21]} 29. b3 {[%clk 0:01:25]}  Rf4 {[%clk 0:01:18]} 30. Qa7+ {[%clk 0:01:22]}  Kh6 {[%clk 0:01:17]} 31. Qxa6 {[%clk 0:01:19]}  Re4 {[%clk 0:01:17]} 32. Qxb5 {[%clk 0:01:15]}  Rxd4 {[%clk 0:01:18]} 33. a4 {[%clk 0:01:13]}  Rd2 {[%clk 0:01:18]} 34. a5 {[%clk 0:01:07]}  Rxg2+ {[%clk 0:01:17]} 35. Kf1 {[%clk 0:01:06]}  Ra2 {[%clk 0:01:16]} 36. a6 {[%clk 0:01:02]}  Kh5 {[%clk 0:01:15]} 37. Qb6 {[%clk 0:00:55]}  Kh4 {[%clk 0:01:13]} 38. b4 {[%clk 0:00:52]}  Kxh3 {[%clk 0:01:12]} 39. b5 {[%clk 0:00:52]}  g5 {[%clk 0:01:12]} 40. Qe3+ {[%clk 0:00:49]}  Kh4 {[%clk 0:01:11]} 41. a7 {[%clk 0:00:50]}  g4 {[%clk 0:01:11]} 42. b6 {[%clk 0:00:48]}  g3 {[%clk 0:01:07]} 43. Qh6+ {[%clk 0:00:43]}  Kg4 {[%clk 0:01:07]} 44. Qg7+ {[%clk 0:00:36]}  Kf4 {[%clk 0:01:06]} 45. b7 {[%clk 0:00:34]}  Bf3 {[%clk 0:00:33]} 46. Qf6+ {[%clk 0:00:27]}  Ke3 {[%clk 0:00:32]} 47. Qg5+ {[%clk 0:00:24]}  Kd3 {[%clk 0:00:30]} 48. Qxg3 {[%clk 0:00:20]}  Ke3 {[%clk 0:00:26]} 49. Qe1+ {[%clk 0:00:16]}  Kf4 {[%clk 0:00:25]} 50. b8=Q {[%clk 0:00:17]}  Rg2 {[%clk 0:00:24]} 51. Qf8+ {[%clk 0:00:17]}  Kg4 {[%clk 0:00:24]} 52. Qg7+ {[%clk 0:00:15]}  Kh3 {[%clk 0:00:24]} 53. Qxg2+ {[%clk 0:00:15]}  Bxg2+ {[%clk 0:00:24]} 54. Kg1 {[%clk 0:00:15]}  Ba8 {[%clk 0:00:25]} 55. Qe3+ {[%clk 0:00:15]}  Kg4 {[%clk 0:00:25]} 56. Qb6 {[%clk 0:00:15]}  Kf5 {[%clk 0:00:25]} 57. Qb8 {[%clk 0:00:15]}  Bh1 {[%clk 0:00:26]} 58. a8=Q {[%clk 0:00:15]}  Bxa8 {[%clk 0:00:26]} 59. Qxa8 {[%clk 0:00:16]}  Kxe5 {[%clk 0:00:26]} 60. Kf2 {[%clk 0:00:16]}  Kd4 {[%clk 0:00:27]} 61. Qe8 {[%clk 0:00:14]}  e5 {[%clk 0:00:28]} 62. Ke2 {[%clk 0:00:14]}  Kd5 {[%clk 0:00:29]} 63. Ke3 {[%clk 0:00:14]}  e4 {[%clk 0:00:29]} 64. Qxe4+ {[%clk 0:00:14]} 1-0


[Site "https://www.chess.com"]

[Event "Titled Tuesday Blitz June 28 Early 2022"]
[White "Bommini, Mounika Akshaya"]
[Black "Shtyka, Sergey"]
[WhiteFideId "25019872"]
[BlackFideId "4138465"]
[WhiteElo "1680"]
[BlackElo "2014"]
[Result "1-0"]
[Round "05"]
[TimeControl "180+1"]
[Date "2022.06.28"]
[WhiteClock "0:02:05"]
[BlackClock "0:00:03"]

1. d4 {[%clk 0:02:48]}  c5 {[%clk 0:02:59]} 2. c3 {[%clk 0:02:42]}  cxd4 {[%clk 0:02:55]} 3. cxd4 {[%clk 0:02:41]}  Nf6 {[%clk 0:02:56]} 4. Nc3 {[%clk 0:02:41]}  d5 {[%clk 0:02:53]} 5. Bf4 {[%clk 0:02:41]}  g6 {[%clk 0:02:52]} 6. e3 {[%clk 0:02:39]}  Bg7 {[%clk 0:02:52]} 7. h4 {[%clk 0:02:38]}  O-O {[%clk 0:02:52]} 8. h5 {[%clk 0:02:36]}  Nxh5 {[%clk 0:02:46]} 9. Rxh5 {[%clk 0:02:36]}  gxh5 {[%clk 0:02:45]} 10. Qxh5 {[%clk 0:02:36]}  e6 {[%clk 0:01:53]} 11. Nf3 {[%clk 0:02:24]}  f5 {[%clk 0:01:45]} 12. Be2 {[%clk 0:02:04]}  Nc6 {[%clk 0:00:03]} 13. Kd1 {[%clk 0:02:05]} 1-0


[Site "https://www.chess.com"]

[Event "Titled Tuesday Blitz June 28 Early 2022"]
[White "Bychkov, Vladimir"]
[Black "Sadykov, Ramil"]
[WhiteFideId "24151513"]
[BlackFideId "24113590"]
[WhiteElo "2197"]
[BlackElo "2226"]
[Result "1-0"]
[Round "05"]
[TimeControl "180+1"]
[Date "2022.06.28"]
[WhiteClock "0:00:29"]
[BlackClock "0:00:09"]

1. c4 {[%clk 0:03:00]}  Nf6 {[%clk 0:02:51]} 2. Nc3 {[%clk 0:02:58]}  d5 {[%clk 0:02:51]} 3. cxd5 {[%clk 0:02:58]}  Nxd5 {[%clk 0:02:52]} 4. e4 {[%clk 0:02:59]}  Nb6 {[%clk 0:02:52]} 5. d4 {[%clk 0:02:58]}  g6 {[%clk 0:02:51]} 6. a4 {[%clk 0:02:57]}  a5 {[%clk 0:02:50]} 7. Be3 {[%clk 0:02:54]}  Bg7 {[%clk 0:02:50]} 8. h4 {[%clk 0:02:54]}  Nc6 {[%clk 0:02:46]} 9. d5 {[%clk 0:02:53]}  Ne5 {[%clk 0:02:46]} 10. h5 {[%clk 0:02:53]}  O-O {[%clk 0:02:44]} 11. hxg6 {[%clk 0:02:47]}  fxg6 {[%clk 0:02:45]} 12. Qc1 {[%clk 0:02:43]}  Ng4 {[%clk 0:02:39]} 13. f3 {[%clk 0:02:32]}  Nxe3 {[%clk 0:02:36]} 14. Qxe3 {[%clk 0:02:32]}  e6 {[%clk 0:02:32]} 15. dxe6 {[%clk 0:02:23]}  Bxe6 {[%clk 0:02:33]} 16. Rd1 {[%clk 0:02:22]}  Qe7 {[%clk 0:02:32]} 17. Nh3 {[%clk 0:02:18]}  Nc4 {[%clk 0:02:18]} 18. Bxc4 {[%clk 0:02:17]}  Bxc4 {[%clk 0:02:18]} 19. Nf4 {[%clk 0:02:09]}  c6 {[%clk 0:02:04]} 20. Kf2 {[%clk 0:01:50]}  Bf6 {[%clk 0:01:27]} 21. Nfe2 {[%clk 0:01:35]}  Bg5 {[%clk 0:01:18]} 22. Qb6 {[%clk 0:01:23]}  Bf6 {[%clk 0:00:51]} 23. Rd2 {[%clk 0:01:09]}  Ra6 {[%clk 0:00:45]} 24. Qe3 {[%clk 0:01:06]}  Bg5 {[%clk 0:00:35]} 25. f4 {[%clk 0:00:56]}  Bf6 {[%clk 0:00:33]} 26. g3 {[%clk 0:00:54]}  Raa8 {[%clk 0:00:31]} 27. Kg2 {[%clk 0:00:52]}  Rae8 {[%clk 0:00:30]} 28. Rhd1 {[%clk 0:00:50]}  Be6 {[%clk 0:00:31]} 29. e5 {[%clk 0:00:50]}  Bg7 {[%clk 0:00:31]} 30. Ne4 {[%clk 0:00:47]}  Bd5 {[%clk 0:00:31]} 31. Nc3 {[%clk 0:00:47]}  Bb3 {[%clk 0:00:29]} 32. Rd7 {[%clk 0:00:44]}  Qe6 {[%clk 0:00:19]} 33. R1d6 {[%clk 0:00:43]}  Qc4 {[%clk 0:00:17]} 34. Rxb7 {[%clk 0:00:36]}  Bc2 {[%clk 0:00:17]} 35. Rdd7 {[%clk 0:00:33]}  Bxe5 {[%clk 0:00:08]} 36. fxe5 {[%clk 0:00:32]}  Rxe5 {[%clk 0:00:09]} 37. Rg7+ {[%clk 0:00:28]}  Kh8 {[%clk 0:00:09]} 38. Rxh7+ {[%clk 0:00:29]} 1-0


[Site "https://www.chess.com"]

[Event "Titled Tuesday Blitz June 28 Early 2022"]
[White "Deac, Bogdan-Daniel"]
[Black "Araujo Sanchez, Josue"]
[WhiteFideId "1226380"]
[BlackFideId "6416896"]
[WhiteElo "2648"]
[BlackElo "2339"]
[Result "1-0"]
[Round "05"]
[TimeControl "180+1"]
[Date "2022.06.28"]
[WhiteClock "0:01:55"]
[BlackClock "0:00:10"]

1. d4 {[%clk 0:03:00]}  Nf6 {[%clk 0:02:44]} 2. c4 {[%clk 0:03:00]}  e6 {[%clk 0:02:44]} 3. Nc3 {[%clk 0:03:00]}  Bb4 {[%clk 0:02:43]} 4. e3 {[%clk 0:03:00]}  b6 {[%clk 0:02:43]} 5. Bd3 {[%clk 0:02:58]}  Bb7 {[%clk 0:02:42]} 6. Nf3 {[%clk 0:02:58]}  c5 {[%clk 0:02:41]} 7. O-O {[%clk 0:02:56]}  Bxc3 {[%clk 0:02:41]} 8. bxc3 {[%clk 0:02:56]}  O-O {[%clk 0:02:36]} 9. Re1 {[%clk 0:02:56]}  Nc6 {[%clk 0:02:31]} 10. e4 {[%clk 0:02:55]}  d6 {[%clk 0:02:31]} 11. e5 {[%clk 0:02:55]}  dxe5 {[%clk 0:01:35]} 12. dxe5 {[%clk 0:02:56]}  Nd7 {[%clk 0:00:54]} 13. Bxh7+ {[%clk 0:02:49]}  Kh8 {[%clk 0:00:19]} 14. Be4 {[%clk 0:02:18]}  Qe7 {[%clk 0:00:15]} 15. Ng5 {[%clk 0:02:11]}  g6 {[%clk 0:00:15]} 16. Qf3 {[%clk 0:02:05]}  Ndxe5 {[%clk 0:00:10]} 17. Qh3+ {[%clk 0:02:05]}  Kg7 {[%clk 0:00:10]} 18. Qh7+ {[%clk 0:01:56]}  Kf6 {[%clk 0:00:10]} 19. Nh3 {[%clk 0:01:55]} 1-0


[Site "https://www.chess.com"]

[Event "Titled Tuesday Blitz June 28 Early 2022"]
[White "Dobre, Claudiu-Cristian"]
[Black "Jiganchine, Roman"]
[WhiteFideId "1211854"]
[BlackFideId "2603667"]
[WhiteElo "2207"]
[BlackElo "2287"]
[Result "1/2-1/2"]
[Round "05"]
[TimeControl "180+1"]
[Date "2022.06.28"]
[WhiteClock "0:00:05"]
[BlackClock "0:00:08"]

1. c4 {[%clk 0:03:00]}  e6 {[%clk 0:02:53]} 2. Nf3 {[%clk 0:02:59]}  d5 {[%clk 0:02:53]} 3. b3 {[%clk 0:03:00]}  Nf6 {[%clk 0:02:48]} 4. Bb2 {[%clk 0:02:59]}  c5 {[%clk 0:02:46]} 5. e3 {[%clk 0:02:59]}  Nc6 {[%clk 0:02:45]} 6. cxd5 {[%clk 0:02:59]}  exd5 {[%clk 0:02:45]} 7. d4 {[%clk 0:02:59]}  Be6 {[%clk 0:02:45]} 8. Bb5 {[%clk 0:02:57]}  Be7 {[%clk 0:02:37]} 9. O-O {[%clk 0:02:56]}  O-O {[%clk 0:02:36]} 10. Nc3 {[%clk 0:02:54]}  Rc8 {[%clk 0:02:24]} 11. Rc1 {[%clk 0:02:46]}  a6 {[%clk 0:02:17]} 12. Be2 {[%clk 0:02:40]}  Re8 {[%clk 0:02:06]} 13. dxc5 {[%clk 0:02:23]}  Bxc5 {[%clk 0:02:03]} 14. Nxd5 {[%clk 0:02:17]}  Qxd5 {[%clk 0:01:52]} 15. Qxd5 {[%clk 0:02:16]}  Nxd5 {[%clk 0:01:51]} 16. Rxc5 {[%clk 0:02:16]}  Ncb4 {[%clk 0:01:43]} 17. Rfc1 {[%clk 0:01:44]}  Nxa2 {[%clk 0:01:32]} 18. Rxc8 {[%clk 0:01:42]}  Rxc8 {[%clk 0:01:31]} 19. Rxc8+ {[%clk 0:01:42]}  Bxc8 {[%clk 0:01:31]} 20. Nd4 {[%clk 0:01:40]}  Nab4 {[%clk 0:01:24]} 21. Ba3 {[%clk 0:01:33]}  a5 {[%clk 0:00:50]} 22. e4 {[%clk 0:01:30]}  Nf6 {[%clk 0:00:46]} 23. Bxb4 {[%clk 0:01:30]}  axb4 {[%clk 0:00:46]} 24. f3 {[%clk 0:01:28]}  Be6 {[%clk 0:00:45]} 25. Nxe6 {[%clk 0:01:26]}  fxe6 {[%clk 0:00:45]} 26. Bc4 {[%clk 0:01:23]}  Kf7 {[%clk 0:00:44]} 27. Kf2 {[%clk 0:01:21]}  Ke7 {[%clk 0:00:42]} 28. e5 {[%clk 0:01:14]}  Nd7 {[%clk 0:00:40]} 29. f4 {[%clk 0:01:14]}  Nc5 {[%clk 0:00:41]} 30. f5 {[%clk 0:00:53]}  b5 {[%clk 0:00:29]} 31. Bxb5 {[%clk 0:00:31]}  Nxb3 {[%clk 0:00:27]} 32. fxe6 {[%clk 0:00:28]}  Nd4 {[%clk 0:00:25]} 33. Bd3 {[%clk 0:00:28]}  h6 {[%clk 0:00:21]} 34. Ke3 {[%clk 0:00:25]}  Nxe6 {[%clk 0:00:21]} 35. Bc4 {[%clk 0:00:26]}  Nc5 {[%clk 0:00:15]} 36. Kd4 {[%clk 0:00:22]}  Nd7 {[%clk 0:00:13]} 37. h4 {[%clk 0:00:18]}  g5 {[%clk 0:00:13]} 38. h5 {[%clk 0:00:18]}  g4 {[%clk 0:00:12]} 39. g3 {[%clk 0:00:17]}  Nb6 {[%clk 0:00:11]} 40. Bb3 {[%clk 0:00:17]}  Nd7 {[%clk 0:00:10]} 41. Kd5 {[%clk 0:00:17]}  Nb6+ {[%clk 0:00:10]} 42. Kc5 {[%clk 0:00:17]}  Nd7+ {[%clk 0:00:10]} 43. Kd4 {[%clk 0:00:16]}  Nb6 {[%clk 0:00:10]} 44. e6 {[%clk 0:00:14]}  Nc8 {[%clk 0:00:10]} 45. Ke5 {[%clk 0:00:14]}  Nd6 {[%clk 0:00:09]} 46. Kf4 {[%clk 0:00:12]}  Nb5 {[%clk 0:00:09]} 47. Ke4 {[%clk 0:00:11]}  Nd6+ {[%clk 0:00:09]} 48. Ke5 {[%clk 0:00:11]}  Nb5 {[%clk 0:00:09]} 49. Kd5 {[%clk 0:00:10]}  Nc7+ {[%clk 0:00:09]} 50. Ke5 {[%clk 0:00:09]}  Nb5 {[%clk 0:00:09]} 51. Bc4 {[%clk 0:00:08]}  Na3 {[%clk 0:00:08]} 52. Bb3 {[%clk 0:00:05]}  Nb5 {[%clk 0:00:08]} 1/2-1/2


[Site "https://www.chess.com"]

[Event "Titled Tuesday Blitz June 28 Early 2022"]
[White "Garcia Cuenca, Victor"]
[Black "Ferreira, Vitor Hugo Vieira"]
[WhiteFideId "2250829"]
[BlackFideId "2119765"]
[WhiteElo "2317"]
[BlackElo "2165"]
[Result "1/2-1/2"]
[Round "05"]
[TimeControl "180+1"]
[Date "2022.06.28"]
[WhiteClock "0:00:21"]
[BlackClock "0:00:18"]

1. b3 {[%clk 0:02:58]}  Nf6 {[%clk 0:02:59]} 2. Bb2 {[%clk 0:02:57]}  d5 {[%clk 0:02:59]} 3. e3 {[%clk 0:02:58]}  Bg4 {[%clk 0:02:58]} 4. Nf3 {[%clk 0:02:58]}  c6 {[%clk 0:02:58]} 5. Be2 {[%clk 0:02:59]}  Nbd7 {[%clk 0:02:58]} 6. O-O {[%clk 0:03:00]}  e6 {[%clk 0:02:58]} 7. d4 {[%clk 0:02:59]}  Bd6 {[%clk 0:02:57]} 8. c4 {[%clk 0:03:00]}  O-O {[%clk 0:02:57]} 9. Nbd2 {[%clk 0:02:58]}  Qe7 {[%clk 0:02:55]} 10. Ne5 {[%clk 0:02:56]}  Bf5 {[%clk 0:02:55]} 11. Bf3 {[%clk 0:02:43]}  Ba3 {[%clk 0:02:53]} 12. Bxa3 {[%clk 0:02:37]}  Qxa3 {[%clk 0:02:52]} 13. Nxd7 {[%clk 0:02:35]}  Nxd7 {[%clk 0:02:52]} 14. e4 {[%clk 0:02:35]}  dxe4 {[%clk 0:02:52]} 15. Nxe4 {[%clk 0:02:35]}  Bxe4 {[%clk 0:02:51]} 16. Bxe4 {[%clk 0:02:34]}  Nf6 {[%clk 0:02:51]} 17. Bc2 {[%clk 0:02:30]}  Rad8 {[%clk 0:02:51]} 18. Qd3 {[%clk 0:02:22]}  Rd7 {[%clk 0:02:47]} 19. Qe3 {[%clk 0:02:15]}  Rfd8 {[%clk 0:02:47]} 20. Rad1 {[%clk 0:02:00]}  Qb2 {[%clk 0:02:47]} 21. Rd2 {[%clk 0:01:58]}  Qa3 {[%clk 0:02:33]} 22. Rfd1 {[%clk 0:01:58]}  Kf8 {[%clk 0:02:28]} 23. Bb1 {[%clk 0:01:51]}  Qb4 {[%clk 0:02:27]} 24. h3 {[%clk 0:01:49]}  c5 {[%clk 0:02:23]} 25. Kf1 {[%clk 0:01:13]}  cxd4 {[%clk 0:02:21]} 26. Rxd4 {[%clk 0:01:12]}  Rxd4 {[%clk 0:02:15]} 27. Rxd4 {[%clk 0:01:13]}  Rxd4 {[%clk 0:02:11]} 28. Qxd4 {[%clk 0:01:14]}  a5 {[%clk 0:02:07]} 29. Ke2 {[%clk 0:01:10]}  Ke7 {[%clk 0:02:04]} 30. Qb2 {[%clk 0:01:05]}  g6 {[%clk 0:02:00]} 31. a3 {[%clk 0:01:03]}  Qc5 {[%clk 0:01:58]} 32. Bd3 {[%clk 0:01:04]}  Nd7 {[%clk 0:01:57]} 33. b4 {[%clk 0:01:04]}  axb4 {[%clk 0:01:55]} 34. axb4 {[%clk 0:01:04]}  Qg5 {[%clk 0:01:55]} 35. Be4 {[%clk 0:00:58]}  b6 {[%clk 0:01:47]} 36. Qd4 {[%clk 0:00:57]}  f5 {[%clk 0:01:42]} 37. Bc6 {[%clk 0:00:55]}  Nf6 {[%clk 0:01:27]} 38. Qxb6 {[%clk 0:00:55]}  Qc1 {[%clk 0:01:24]} 39. Qc7+ {[%clk 0:00:52]}  Kf8 {[%clk 0:01:25]} 40. Qd8+ {[%clk 0:00:49]}  Kf7 {[%clk 0:01:25]} 41. Qd4 {[%clk 0:00:41]}  e5 {[%clk 0:01:18]} 42. Bd5+ {[%clk 0:00:39]}  Nxd5 {[%clk 0:01:00]} 43. Qxd5+ {[%clk 0:00:37]}  Kf8 {[%clk 0:00:57]} 44. Qd8+ {[%clk 0:00:21]}  Kg7 {[%clk 0:00:54]} 45. Qc7+ {[%clk 0:00:21]}  Kh6 {[%clk 0:00:53]} 46. Qxe5 {[%clk 0:00:20]}  Qxc4+ {[%clk 0:00:53]} 47. Kf3 {[%clk 0:00:20]}  Qxb4 {[%clk 0:00:50]} 48. Qe3+ {[%clk 0:00:20]}  Kg7 {[%clk 0:00:48]} 49. Qe5+ {[%clk 0:00:21]}  Kg8 {[%clk 0:00:46]} 50. Qe6+ {[%clk 0:00:20]}  Kg7 {[%clk 0:00:46]} 51. Qe5+ {[%clk 0:00:21]}  Kh6 {[%clk 0:00:45]} 52. Qf4+ {[%clk 0:00:21]}  Qxf4+ {[%clk 0:00:45]} 53. Kxf4 {[%clk 0:00:22]}  Kg7 {[%clk 0:00:45]} 54. g3 {[%clk 0:00:21]}  Kf6 {[%clk 0:00:44]} 55. h4 {[%clk 0:00:21]}  h6 {[%clk 0:00:44]} 56. f3 {[%clk 0:00:22]}  g5+ {[%clk 0:00:43]} 57. hxg5+ {[%clk 0:00:22]}  hxg5+ {[%clk 0:00:44]} 58. Ke3 {[%clk 0:00:22]}  Ke5 {[%clk 0:00:45]} 59. Kd3 {[%clk 0:00:22]}  Kd5 {[%clk 0:00:40]} 60. Ke3 {[%clk 0:00:20]}  Ke5 {[%clk 0:00:29]} 61. f4+ {[%clk 0:00:18]}  gxf4+ {[%clk 0:00:17]} 62. gxf4+ {[%clk 0:00:19]}  Kd5 {[%clk 0:00:18]} 63. Kd3 {[%clk 0:00:19]}  Kc5 {[%clk 0:00:18]} 64. Kc3 {[%clk 0:00:20]}  Kd5 {[%clk 0:00:17]} 65. Kd3 {[%clk 0:00:20]}  Kc5 {[%clk 0:00:17]} 66. Kc3 {[%clk 0:00:21]}  Kd5 {[%clk 0:00:18]} 67. Kd3 {[%clk 0:00:21]} 1/2-1/2


[Site "https://www.chess.com"]

[Event "Titled Tuesday Blitz June 28 Early 2022"]
[White "Garcia, Gabriel Gonzaga"]
[Black "Donatti, Alvaro"]
[WhiteFideId "2138956"]
[BlackFideId "3000303"]
[WhiteElo "2240"]
[BlackElo "2138"]
[Result "0-1"]
[Round "05"]
[TimeControl "180+1"]
[Date "2022.06.28"]
[WhiteClock "0:01:58"]
[BlackClock "0:01:58"]

1. e4 {[%clk 0:02:59]}  c5 {[%clk 0:02:59]} 2. Nf3 {[%clk 0:02:59]}  e6 {[%clk 0:02:59]} 3. d4 {[%clk 0:02:59]}  cxd4 {[%clk 0:02:59]} 4. Nxd4 {[%clk 0:03:00]}  a6 {[%clk 0:02:59]} 5. Nc3 {[%clk 0:02:59]}  Qc7 {[%clk 0:02:59]} 6. Be2 {[%clk 0:02:59]}  Nf6 {[%clk 0:02:59]} 7. O-O {[%clk 0:03:00]}  Bb4 {[%clk 0:02:56]} 8. Bd3 {[%clk 0:02:59]}  O-O {[%clk 0:02:50]} 9. Bg5 {[%clk 0:02:50]}  Be7 {[%clk 0:02:47]} 10. Qf3 {[%clk 0:02:45]}  Nc6 {[%clk 0:02:46]} 11. Nxc6 {[%clk 0:02:40]}  bxc6 {[%clk 0:02:46]} 12. Rfe1 {[%clk 0:02:36]}  e5 {[%clk 0:02:45]} 13. Qg3 {[%clk 0:02:30]}  Rb8 {[%clk 0:02:41]} 14. Rab1 {[%clk 0:02:26]}  Kh8 {[%clk 0:02:37]} 15. Bc4 {[%clk 0:02:20]}  d6 {[%clk 0:02:34]} 16. Red1 {[%clk 0:02:08]}  Be6 {[%clk 0:02:25]} 17. Bb3 {[%clk 0:02:04]}  Bxb3 {[%clk 0:02:07]} 18. axb3 {[%clk 0:02:05]}  Nh5 {[%clk 0:02:05]} 19. Qh4 {[%clk 0:02:01]}  Bxg5 {[%clk 0:02:03]} 20. Qxg5 {[%clk 0:02:02]}  Nf4 {[%clk 0:02:00]} 21. g3 {[%clk 0:01:58]}  Nh3+ {[%clk 0:01:58]} 0-1


[Site "https://www.chess.com"]